[Event "GER-ch Youth U10W 2020"]
[Site "Willingen"]
[Date "2020.10.31"]
[Round "7.2"]
[White "Trunz, Tamila"]
[Black "Neininger, Sarah"]
[Result "1-0"]
[ECO "B24"]
[WhiteElo "1379"]
[BlackElo "1469"]
[Annotator "NA RC"]
[PlyCount "83"]
[EventDate "2020.10.27"]
[EventType "swiss"]
[EventRounds "7"]
[EventCountry "GER"]
[SourceTitle "playchess.com"]
[Source "ChessBase"]
[SourceQuality "1"]
[TimeControl "40/4500+30:900+30"]

1. e4 {[%emt 0:00:00]} c5 {[%emt 0:00:00]} 2. Nc3 {[%emt 0:00:00]} Nc6 {[%emt 0:00:00]} 3. g3 {[%emt 0:00:08]} g6 {[%emt 0:00:22]} 4. Bg2 {[%emt 0:00:15]} Bg7 {[%emt 0:00:21]} 5. d3 {[%emt 0:01:13]} Nf6 {[%emt 0:00:52]} 6. Be3 {[%emt 0:01:16]} d6 {[%emt 0:00:51]} 7. h3 {[%emt 0:01:36]} O-O {[%emt 0:01:39]} 8. Qd2 {[%emt 0:00:47]} Nd4 {[%emt 0:01:32]} 9. Nd1 {[%emt 0:00:56]} d5 {[%emt 0:01:35]} 10. c3 {[%emt 0:00:35]} Ne6 {[%emt 0:02:16]} 11. Bh6 {[%emt 0:01:05]} dxe4 {[%emt 0:01:32]} 12. Bxg7 {[%emt 0:02:44]} Kxg7 {[%emt 0:00:35]} 13. dxe4 {[%emt 0:01:37]} Qxd2+ {[%emt 0:00:54]} 14. Kxd2 {[%emt 0:00:17]} Ng5 {[%emt 0:00:45]} 15. e5 {[%emt 0:01:31]} Nd7 {[%emt 0:01:29]} 16. f4 {[%emt 0:01:10]} Ne6 {[%emt 0:00:35]} 17. Ke3 {[%emt 0:01:27]} f6 {[%emt 0:02:23]} 18. exf6+ {[%emt 0:08:14]} exf6 {[%emt 0:00:28]} 19. g4 {[%emt 0:02:45]} Re8 {[%emt 0:03:25]} 20. Kf3 {[%emt 0:01:22]} b6 {[%emt 0:03:52]} 21. Kg3 {[%emt 0:02:13]} Rb8 {[%emt 0:00:23]} 22. Ne3 {[%emt 0:00:45]} Nc7 {[%emt 0:02:39]} 23. Nc4 {[%emt 0:01:20]} b5 {[%emt 0:01:43]} 24. Nd6 {[%emt 0:03:11]} Re6 {[%emt 0:02:16]} 25. Rd1 {[%emt 0:01:30]} Nf8 {[%emt 0:04:44]} 26. h4 {[%emt 0:05:34]} Ne8 {[%emt 0:01:46]} 27. Nxc8 {[%emt 0:06:09]} Rxc8 {[%emt 0:01:09]} 28. Nf3 {[%emt 0:01:31]} Rc7 {[%emt 0:04:25]} 29. h5 {[%emt 0:01:19]} Rd7 {[%emt 0:03:45]} 30. Rxd7+ {[%emt 0:09:23]} Nxd7 {[%emt 0:00:17]} 31. Rd1 {[%emt 0:00:27]} Rd6 {[%emt 0:02:04]} 32. Re1 {[%emt 0:00:37]} Kf7 {[%emt 0:01:56]} 33. hxg6+ {[%emt 0:03:04]} hxg6 {[%emt 0:00:29]} 34. Nh4 {[%emt 0:02:52]} g5 {[%emt 0:02:42]} 35. fxg5 {[%emt 0:04:49]} fxg5 {[%emt 0:00:30]} 36. Nf5 {[%emt 0:00:14]} Re6 {[%emt 0:01:32]} 37. Bd5 {[%emt 0:00:36]} Nc7 {[%emt 0:00:59]} 38. Bxe6+ {[%emt 0:00:28]} Nxe6 {[%emt 0:00:11]} 39. Nd6+ {[%emt 0:00:30]} Kf6 {[%emt 0:00:38]} 40. Nxb5 {[%emt 0:00:36]} a6 {[%emt 0:00:25]} 41. Nd6 {[%emt 0:15:34]} Nf4 {[%emt 0:16:29]} 42. Ne4+ {[%emt 0:01:24]} 1-0

[Event "GER-ch Youth U10W 2020"]
[Site "Willingen"]
[Date "2020.10.31"]
[Round "7.3"]
[White "Kutz, Ida Klara"]
[Black "Czaeczine, Paula"]
[Result "1-0"]
[ECO "A29"]
[WhiteElo "997"]
[BlackElo "1127"]
[Annotator "NA RC"]
[PlyCount "79"]
[EventDate "2020.10.27"]
[EventType "swiss"]
[EventRounds "7"]
[EventCountry "GER"]
[SourceTitle "playchess.com"]
[Source "ChessBase"]
[SourceQuality "1"]
[TimeControl "40/4500+30:900+30"]

1. c4 {[%emt 0:00:00]} e5 {[%emt 0:00:00]} 2. Nc3 {[%emt 0:00:00]} Nf6 {[%emt 0:00:33]} 3. Nf3 {[%emt 0:00:05]} Nc6 {[%emt 0:00:37]} 4. g3 {[%emt 0:00:10]} Bc5 {[%emt 0:02:18]} 5. Bg2 {[%emt 0:00:20]} O-O {[%emt 0:00:57]} 6. O-O {[%emt 0:05:50]} d5 {[%emt 0:02:30]} 7. cxd5 {[%emt 0:03:30]} Nxd5 {[%emt 0:00:55]} 8. Qc2 {[%emt 0:01:42]} Be6 {[%emt 0:07:57]} 9. Nxd5 {[%emt 0:02:20]} Qxd5 {[%emt 0:00:24]} 10. Ng5 {[%emt 0:00:20]} e4 {[%emt 0:01:20]} 11. Nxe4 {[%emt 0:02:19]} Bxf2+ {[%emt 0:15:19]} 12. Nxf2 {[%emt 0:05:04]} Nd4 {[%emt 0:02:17]} 13. Qxc7 {[%emt 0:03:02]} Nxe2+ {[%emt 0:00:38]} 14. Kh1 {[%emt 0:00:23]} Qh5 {[%emt 0:03:51]} 15. Ne4 {[%emt 0:04:18]} Rac8 {[%emt 0:04:18]} 16. Qe7 {[%emt 0:02:45]} Qe5 {[%emt 0:06:45]} 17. Qg5 {[%emt 0:02:43]} Qd4 {[%emt 0:01:15]} 18. Qe3 {[%emt 0:01:21]} Qxe3 {[%emt 0:05:39]} 19. dxe3 {[%emt 0:00:11]} Rc2 {[%emt 0:02:25]} 20. Re1 {[%emt 0:01:33]} Rd8 {[%emt 0:01:57]} 21. Bf3 {[%emt 0:00:49]} Nxc1 {[%emt 0:07:28]} 22. Raxc1 {[%emt 0:02:04]} Rxb2 {[%emt 0:00:19]} 23. Red1 {[%emt 0:00:24]} Re8 {[%emt 0:00:49]} 24. Nd6 {[%emt 0:01:06]} Rb8 {[%emt 0:00:18]} 25. Nxb7 {[%emt 0:00:28]} Rxa2 {[%emt 0:03:14]} 26. Rd8+ {[%emt 0:02:03]} Rxd8 {[%emt 0:00:07]} 27. Nxd8 {[%emt 0:00:12]} Bh3 {[%emt 0:00:34]} 28. Nxf7 {[%emt 0:00:40]} Rf2 {[%emt 0:01:47]} 29. Bd5 {[%emt 0:00:41]} Kf8 {[%emt 0:00:14]} 30. Ng5 {[%emt 0:01:16]} Bf5 {[%emt 0:01:52]} 31. e4 {[%emt 0:01:18]} Bg6 {[%emt 0:00:27]} 32. Rc8+ {[%emt 0:00:48]} Ke7 {[%emt 0:00:28]} 33. Rc7+ {[%emt 0:00:41]} Kf6 {[%emt 0:00:29]} 34. h4 {[%emt 0:00:35]} a5 {[%emt 0:01:21]} 35. Rc8 {[%emt 0:01:42]} Rb2 {[%emt 0:01:01]} 36. Rc6+ {[%emt 0:01:01]} Ke7 {[%emt 0:00:34]} 37. Re6+ {[%emt 0:01:02]} Kf8 {[%emt 0:00:28]} 38. Re5 {[%emt 0:03:34]} Rb5 {[%emt 0:01:51]} 39. h5 {[%emt 0:01:15]} Be8 {[%emt 0:00:49]} 40. Nxh7# {[%emt 0:01:06]} 1-0

[Event "GER-ch Youth U10W 2020"]
[Site "Willingen"]
[Date "2020.10.31"]
[Round "7.4"]
[White "Bako, Isabella"]
[Black "Bauer, Laura Sophie"]
[Result "0-1"]
[ECO "B27"]
[WhiteElo "1153"]
[BlackElo "1287"]
[Annotator "NA RC"]
[PlyCount "101"]
[EventDate "2020.10.27"]
[EventType "swiss"]
[EventRounds "7"]
[EventCountry "GER"]
[SourceTitle "playchess.com"]
[Source "ChessBase"]
[SourceQuality "1"]
[TimeControl "40/4500+30:900+30"]

1. e4 {[%emt 0:00:15]} c5 {[%emt 0:00:00]} 2. Nf3 {[%emt 0:00:14]} g6 {[%emt 0:00:00]} 3. c4 {[%emt 0:00:56]} Nc6 {[%emt 0:00:59]} 4. d4 {[%emt 0:01:55]} cxd4 {[%emt 0:00:09]} 5. Nxd4 {[%emt 0:00:13]} Nf6 {[%emt 0:00:11]} 6. Nc3 {[%emt 0:00:21]} d6 {[%emt 0:00:10]} 7. f3 {[%emt 0:01:29]} Nxd4 {[%emt 0:01:11]} 8. Qxd4 {[%emt 0:00:31]} Bg7 {[%emt 0:00:11]} 9. Qd1 {[%emt 0:02:59]} O-O {[%emt 0:00:42]} 10. Be3 {[%emt 0:00:45]} Be6 {[%emt 0:00:45]} 11. Qd2 {[%emt 0:01:35]} Qa5 {[%emt 0:01:01]} 12. Be2 {[%emt 0:05:52]} Rfc8 {[%emt 0:01:22]} 13. b3 {[%emt 0:01:48]} a6 {[%emt 0:03:16]} 14. Rd1 {[%emt 0:06:43]} b5 {[%emt 0:00:58]} 15. Nd5 {[%emt 0:01:15]} Qxd2+ {[%emt 0:01:02]} 16. Bxd2 {[%emt 0:01:08]} Nxd5 {[%emt 0:00:24]} 17. cxd5 {[%emt 0:01:41]} Bd7 {[%emt 0:00:08]} 18. Be3 {[%emt 0:07:21]} Rc2 {[%emt 0:02:28]} 19. a3 {[%emt 0:02:24]} Rc3 {[%emt 0:01:30]} 20. Rd3 {[%emt 0:03:51]} Rac8 {[%emt 0:00:58]} 21. O-O {[%emt 0:01:41]} Rxd3 {[%emt 0:03:26]} 22. Bxd3 {[%emt 0:00:07]} Rc3 {[%emt 0:00:11]} 23. Rd1 {[%emt 0:00:20]} Rxb3 {[%emt 0:00:32]} 24. Bc1 {[%emt 0:02:06]} Bd4+ {[%emt 0:00:55]} 25. Kf1 {[%emt 0:00:50]} Bc5 {[%emt 0:02:12]} 26. Bc2 {[%emt 0:13:23]} Rc3 {[%emt 0:01:14]} 27. Bb1 {[%emt 0:00:39]} Bxa3 {[%emt 0:01:19]} 28. Bd2 {[%emt 0:00:25]} Rc8 {[%emt 0:01:07]} 29. Bg5 {[%emt 0:00:40]} f6 {[%emt 0:00:11]} 30. Bh6 {[%emt 0:00:20]} b4 {[%emt 0:00:55]} 31. Ba2 {[%emt 0:00:21]} Bb5+ {[%emt 0:00:23]} 32. Kf2 {[%emt 0:00:32]} Rc2+ {[%emt 0:00:11]} 33. Rd2 {[%emt 0:00:32]} Rxd2+ {[%emt 0:00:11]} 34. Bxd2 {[%emt 0:00:06]} a5 {[%emt 0:00:16]} 35. Ke1 {[%emt 0:00:55]} a4 {[%emt 0:00:39]} 36. Kd1 {[%emt 0:00:17]} b3 {[%emt 0:00:16]} 37. Bb1 {[%emt 0:00:16]} Bb2 {[%emt 0:00:12]} 38. Bc1 {[%emt 0:00:50]} Bxc1 {[%emt 0:00:35]} 39. Kxc1 {[%emt 0:00:20]} a3 {[%emt 0:00:06]} 40. e5 {[%emt 0:00:24]} a2 {[%emt 0:00:07]} 41. Kb2 {[%emt 0:15:12]} axb1=Q+ 42. Kxb1 {[%emt 0:00:00]} fxe5 {[%emt 0:15:35]} 43. Kb2 {[%emt 0:00:00]} Bc4 {[%emt 0:00:05]} 44. Kc3 {[%emt 0:00:00]} Bxd5 {[%emt 0:00:04]} 45. Kb2 {[%emt 0:00:00]} Kf7 {[%emt 0:00:12]} 46. Kc3 {[%emt 0:00:00]} Kf6 {[%emt 0:00:05]} 47. Kb2 {[%emt 0:00:00]} Kf5 {[%emt 0:00:07]} 48. Kc3 {[%emt 0:00:00]} Kf4 {[%emt 0:00:05]} 49. Kd3 {[%emt 0:00:18]} e4+ {[%emt 0:00:16]} 50. fxe4 {[%emt 0:00:10]} Bxe4+ {[%emt 0:00:04]} 51. Kc3 {[%emt 0:00:10]} 0-1

[Event "GER-ch Youth U10W 2020"]
[Site "Willingen"]
[Date "2020.10.31"]
[Round "7.5"]
[White "Richter, Johanna"]
[Black "Meier, Viktoria"]
[Result "1-0"]
[ECO "A58"]
[WhiteElo "1150"]
[BlackElo "1316"]
[Annotator "NA RC"]
[PlyCount "129"]
[EventDate "2020.10.27"]
[EventType "swiss"]
[EventRounds "7"]
[EventCountry "GER"]
[SourceTitle "playchess.com"]
[Source "ChessBase"]
[SourceQuality "1"]
[TimeControl "40/4500+30:900+30"]

1. d4 {[%emt 0:00:00]} Nf6 {[%emt 0:00:00]} 2. c4 {[%emt 0:00:00]} c5 {[%emt 0:00:00]} 3. d5 {[%emt 0:00:00]} b5 {[%emt 0:00:00]} 4. cxb5 {[%emt 0:11:30]} a6 {[%emt 0:00:11]} 5. bxa6 {[%emt 0:06:41]} g6 {[%emt 0:00:09]} 6. g3 {[%emt 0:00:05]} Bg7 {[%emt 0:00:12]} 7. Bg2 {[%emt 0:00:08]} O-O {[%emt 0:01:08]} 8. d6 {[%emt 0:02:58]} Nc6 {[%emt 0:01:31]} 9. dxe7 {[%emt 0:00:32]} Qxe7 {[%emt 0:00:16]} 10. Nf3 {[%emt 0:00:46]} Bxa6 {[%emt 0:00:26]} 11. Nc3 {[%emt 0:00:43]} d5 {[%emt 0:00:46]} 12. e3 {[%emt 0:05:40]} Nb4 {[%emt 0:01:46]} 13. Bf1 {[%emt 0:04:10]} Bxf1 {[%emt 0:01:03]} 14. Kxf1 {[%emt 0:00:07]} Qe6 {[%emt 0:02:14]} 15. a3 {[%emt 0:03:21]} Nc6 {[%emt 0:01:33]} 16. Kg2 {[%emt 0:00:58]} Ne5 {[%emt 0:01:54]} 17. Nxe5 {[%emt 0:03:33]} Qxe5 {[%emt 0:00:32]} 18. Re1 {[%emt 0:04:22]} Rfe8 {[%emt 0:01:32]} 19. Bd2 {[%emt 0:05:52]} Ne4 {[%emt 0:00:59]} 20. Nxe4 {[%emt 0:04:49]} Qxe4+ {[%emt 0:00:33]} 21. f3 {[%emt 0:00:26]} Qe6 {[%emt 0:00:47]} 22. Rb1 {[%emt 0:03:19]} Reb8 {[%emt 0:00:37]} 23. Qc2 {[%emt 0:01:32]} Qd6 {[%emt 0:02:45]} 24. Bc3 {[%emt 0:00:55]} Bxc3 {[%emt 0:00:52]} 25. Qxc3 {[%emt 0:00:31]} d4 {[%emt 0:00:20]} 26. exd4 {[%emt 0:00:07]} Qxd4 {[%emt 0:00:25]} 27. Qxd4 {[%emt 0:00:13]} cxd4 {[%emt 0:00:06]} 28. Red1 {[%emt 0:00:03]} Rd8 {[%emt 0:00:24]} 29. Rd2 {[%emt 0:00:15]} Ra7 {[%emt 0:00:44]} 30. Rbd1 {[%emt 0:00:09]} Rad7 {[%emt 0:00:16]} 31. b4 {[%emt 0:00:06]} Ra8 {[%emt 0:01:30]} 32. Rxd4 {[%emt 0:00:15]} Rxd4 {[%emt 0:00:43]} 33. Rxd4 {[%emt 0:00:03]} Rxa3 {[%emt 0:00:11]} 34. Rd8+ {[%emt 0:00:31]} Kg7 {[%emt 0:00:06]} 35. Rb8 {[%emt 0:00:16]} Ra2+ {[%emt 0:00:23]} 36. Kh3 {[%emt 0:00:04]} Rb2 {[%emt 0:00:08]} 37. b5 {[%emt 0:00:39]} Rb3 {[%emt 0:00:19]} 38. f4 {[%emt 0:00:37]} h5 {[%emt 0:00:48]} 39. b6 {[%emt 0:01:27]} Kf6 {[%emt 0:00:33]} 40. Kh4 {[%emt 0:01:33]} Rb4 {[%emt 0:00:52]} 41. Kh3 {[%emt 0:15:30]} Rb3 {[%emt 0:15:14]} 42. b7 {[%emt 0:00:33]} Kg7 {[%emt 0:01:00]} 43. Kg2 {[%emt 0:03:43]} Kf6 {[%emt 0:00:44]} 44. Kh3 {[%emt 0:02:02]} Kg7 {[%emt 0:00:36]} 45. Kh4 {[%emt 0:00:04]} Rb4 {[%emt 0:00:26]} 46. Kh3 {[%emt 0:00:50]} Rb3 {[%emt 0:00:35]} 47. Kg2 {[%emt 0:00:23]} f5 {[%emt 0:00:49]} 48. h4 {[%emt 0:01:01]} Rb6 {[%emt 0:00:20]} 49. Kf2 {[%emt 0:00:27]} Kf7 {[%emt 0:00:09]} 50. Ke3 {[%emt 0:00:03]} Ke7 {[%emt 0:00:10]} 51. Kd4 {[%emt 0:00:03]} Kd7 {[%emt 0:00:15]} 52. Rg8 {[%emt 0:00:15]} Rb4+ {[%emt 0:06:57]} 53. Ke5 {[%emt 0:01:04]} Rb5+ {[%emt 0:00:22]} 54. Kf6 {[%emt 0:00:04]} Rb6+ {[%emt 0:00:14]} 55. Kg5 {[%emt 0:00:05]} Rb3 {[%emt 0:01:10]} 56. b8=Q Rxg3+ 57. Kh6 {[%emt 0:01:21]} Rc3 {[%emt 0:01:18]} 58. Qb7+ {[%emt 0:00:22]} Kd6 {[%emt 0:00:13]} 59. Qb4+ {[%emt 0:00:06]} Ke6 {[%emt 0:00:12]} 60. Qxc3 {[%emt 0:00:20]} g5 {[%emt 0:00:28]} 61. Kxh5 {[%emt 0:00:23]} gxh4 {[%emt 0:00:13]} 62. Qe5+ {[%emt 0:00:06]} Kf7 {[%emt 0:00:11]} 63. Qe8+ {[%emt 0:00:06]} Kf6 {[%emt 0:00:11]} 64. Rf8+ {[%emt 0:00:07]} Kg7 {[%emt 0:00:10]} 65. Qf7# {[%emt 0:00:09]} 1-0

[Event "GER-ch Youth U10W 2020"]
[Site "Willingen"]
[Date "2020.10.31"]
[Round "7.6"]
[White "Huber, Laura"]
[Black "Woiteck, Sophia"]
[Result "1/2-1/2"]
[ECO "B23"]
[WhiteElo "1249"]
[BlackElo "1065"]
[Annotator "NA RC"]
[PlyCount "66"]
[EventDate "2020.10.27"]
[EventType "swiss"]
[EventRounds "7"]
[EventCountry "GER"]
[SourceTitle "playchess.com"]
[Source "ChessBase"]
[SourceQuality "1"]
[TimeControl "40/4500+30:900+30"]

1. e4 {[%emt 0:00:00]} c5 {[%emt 0:00:00]} 2. Nc3 {[%emt 0:00:00]} Nc6 {[%emt 0:00:00]} 3. f4 {[%emt 0:00:01]} e6 {[%emt 0:00:47]} 4. Nf3 {[%emt 0:05:23]} g6 {[%emt 0:00:35]} 5. Bc4 {[%emt 0:02:50]} Bg7 {[%emt 0:00:44]} 6. O-O {[%emt 0:01:02]} Nge7 {[%emt 0:00:49]} 7. d3 {[%emt 0:03:00]} Na5 {[%emt 0:04:32]} 8. Bb3 {[%emt 0:01:43]} b5 {[%emt 0:05:05]} 9. Nxb5 {[%emt 0:09:03]} Qb6 {[%emt 0:00:17]} 10. c4 {[%emt 0:01:33]} a6 {[%emt 0:01:01]} 11. Nc3 {[%emt 0:01:52]} f5 {[%emt 0:01:38]} 12. Be3 {[%emt 0:08:08]} Bxc3 {[%emt 0:09:20]} 13. bxc3 {[%emt 0:00:46]} fxe4 {[%emt 0:06:22]} 14. dxe4 {[%emt 0:01:44]} Qc6 {[%emt 0:16:27]} 15. Re1 {[%emt 0:22:34]} Rg8 {[%emt 0:01:30]} 16. Qd3 {[%emt 0:01:00]} Rb8 {[%emt 0:12:00]} 17. Qc2 {[%emt 0:03:22]} Bb7 {[%emt 0:00:49]} 18. Bf2 {[%emt 0:02:37]} h6 {[%emt 0:04:32]} 19. Ne5 {[%emt 0:02:58]} Qc7 {[%emt 0:01:21]} 20. Rad1 {[%emt 0:01:50]} d6 {[%emt 0:03:20]} 21. Ba4+ {[%emt 0:00:52]} Bc6 {[%emt 0:00:48]} 22. Nxc6 {[%emt 0:00:13]} Naxc6 {[%emt 0:00:24]} 23. Rb1 {[%emt 0:00:42]} Kf7 {[%emt 0:00:23]} 24. Bb3 {[%emt 0:00:57]} e5 {[%emt 0:01:37]} 25. Qd2 {[%emt 0:00:30]} Rgd8 {[%emt 0:00:51]} 26. Bg3 {[%emt 0:00:40]} Ke6 {[%emt 0:00:51]} 27. Bh4 {[%emt 0:00:44]} Rh8 {[%emt 0:00:59]} 28. Rf1 {[%emt 0:00:50]} Rbf8 {[%emt 0:00:40]} 29. Bxe7 {[%emt 0:00:40]} Nxe7 {[%emt 0:00:25]} 30. Bd1 {[%emt 0:00:24]} h5 {[%emt 0:00:25]} 31. Be2 {[%emt 0:00:42]} Qc6 {[%emt 0:00:15]} 32. Bd3 {[%emt 0:00:37]} h4 {[%emt 0:01:54]} 33. Rf3 {[%emt 0:01:14]} Kd7 {[%emt 0:01:50]} 1/2-1/2

[Event "GER-ch Youth U10W 2020"]
[Site "Willingen"]
[Date "2020.10.31"]
[Round "7.7"]
[White "Rössling, Laura Marie"]
[Black "Schube, Theresa"]
[Result "0-1"]
[ECO "C51"]
[WhiteElo "937"]
[BlackElo "1131"]
[Annotator "NA RC"]
[PlyCount "108"]
[EventDate "2020.10.27"]
[EventType "swiss"]
[EventRounds "7"]
[EventCountry "GER"]
[SourceTitle "playchess.com"]
[Source "ChessBase"]
[SourceQuality "1"]
[TimeControl "40/4500+30:900+30"]

1. e4 {[%emt 0:00:00]} e5 {[%emt 0:00:00]} 2. Nf3 {[%emt 0:00:00]} Nc6 {[%emt 0:00:00]} 3. Bc4 {[%emt 0:00:30]} Bc5 {[%emt 0:00:09]} 4. b4 {[%emt 0:00:47]} Bxb4 {[%emt 0:00:17]} 5. c3 {[%emt 0:00:26]} Bc5 {[%emt 0:00:24]} 6. d4 {[%emt 0:01:16]} exd4 {[%emt 0:00:13]} 7. O-O {[%emt 0:00:56]} dxc3 {[%emt 0:01:00]} 8. Nxc3 {[%emt 0:02:00]} Nge7 {[%emt 0:00:36]} 9. Bg5 {[%emt 0:02:28]} h6 {[%emt 0:01:17]} 10. Bh4 {[%emt 0:03:20]} O-O {[%emt 0:02:53]} 11. Nd5 {[%emt 0:01:24]} d6 {[%emt 0:00:52]} 12. Bb5 {[%emt 0:01:32]} f6 {[%emt 0:00:30]} 13. Re1 {[%emt 0:05:15]} Ne5 {[%emt 0:01:44]} 14. Nxe5 {[%emt 0:04:11]} dxe5 {[%emt 0:02:06]} 15. Nxe7+ {[%emt 0:03:24]} Bxe7 {[%emt 0:00:53]} 16. Bc4+ {[%emt 0:00:52]} Kh8 {[%emt 0:00:15]} 17. Rb1 {[%emt 0:01:17]} b6 {[%emt 0:00:29]} 18. Bd5 {[%emt 0:02:16]} Rb8 {[%emt 0:00:28]} 19. Bc6 {[%emt 0:04:09]} Bb7 {[%emt 0:01:25]} 20. Bxb7 {[%emt 0:02:08]} Rxb7 {[%emt 0:00:26]} 21. a4 {[%emt 0:10:39]} c6 {[%emt 0:02:08]} 22. a5 {[%emt 0:01:14]} Bc5 {[%emt 0:00:40]} 23. Qg4 {[%emt 0:08:26]} Qd2 {[%emt 0:02:31]} 24. Qe6 {[%emt 0:03:41]} Qd6 {[%emt 0:01:47]} 25. Qf5 {[%emt 0:03:24]} Bb4 {[%emt 0:01:18]} 26. Red1 {[%emt 0:01:01]} Qe7 {[%emt 0:01:31]} 27. axb6 {[%emt 0:04:00]} axb6 {[%emt 0:00:18]} 28. Ra1 {[%emt 0:01:09]} Ra7 {[%emt 0:00:48]} 29. Qf3 {[%emt 0:01:44]} Rfa8 {[%emt 0:01:54]} 30. Rac1 {[%emt 0:03:24]} Bc5 {[%emt 0:03:06]} 31. h3 {[%emt 0:01:43]} Ra2 {[%emt 0:00:31]} 32. Kf1 {[%emt 0:02:27]} Qf7 {[%emt 0:01:02]} 33. Qf5 {[%emt 0:01:38]} R2a7 {[%emt 0:02:55]} 34. Rd2 {[%emt 0:02:02]} Ra1 {[%emt 0:01:28]} 35. Rdd1 {[%emt 0:01:22]} Rxc1 {[%emt 0:00:15]} 36. Rxc1 {[%emt 0:00:19]} g5 {[%emt 0:00:31]} 37. Bg3 {[%emt 0:00:38]} h5 {[%emt 0:03:03]} 38. h4 {[%emt 0:01:04]} g4 {[%emt 0:01:50]} 39. f3 {[%emt 0:01:11]} gxf3 {[%emt 0:01:00]} 40. Qxf3 {[%emt 0:01:17]} Rc8 {[%emt 0:01:51]} 41. Bxe5 {[%emt 0:15:22]} Kg7 {[%emt 0:16:36]} 42. Qg3+ {[%emt 0:01:06]} Qg6 {[%emt 0:00:25]} 43. Qh3 {[%emt 0:01:12]} Rd8 {[%emt 0:03:31]} 44. Bc7 {[%emt 0:00:28]} Rd2 {[%emt 0:00:57]} 45. Bf4 {[%emt 0:00:56]} Rf2+ {[%emt 0:00:34]} 46. Kg1 {[%emt 0:00:28]} Rf3+ {[%emt 0:01:05]} 47. Kh2 {[%emt 0:00:20]} Rxh3+ {[%emt 0:00:31]} 48. Kxh3 {[%emt 0:00:16]} Qg4+ {[%emt 0:00:12]} 49. Kh2 {[%emt 0:00:15]} Qxf4+ {[%emt 0:00:09]} 50. Kh3 {[%emt 0:00:44]} Qxc1 {[%emt 0:00:42]} 51. g4 {[%emt 0:00:30]} Qg1 {[%emt 0:00:36]} 52. gxh5 {[%emt 0:00:36]} Bf2 {[%emt 0:00:17]} 53. h6+ {[%emt 0:00:35]} Kf7 {[%emt 0:00:07]} 54. h5 {[%emt 0:00:35]} Qg3# 0-1

[Event "GER-ch Youth U10W 2020"]
[Site "Willingen"]
[Date "2020.10.31"]
[Round "7.8"]
[White "Halas, Neele Zoe"]
[Black "Zhu, Jenny"]
[Result "1-0"]
[ECO "C45"]
[WhiteElo "1295"]
[BlackElo "1573"]
[Annotator "NA RC"]
[PlyCount "85"]
[EventDate "2020.10.27"]
[EventType "swiss"]
[EventRounds "7"]
[EventCountry "GER"]
[SourceTitle "playchess.com"]
[Source "ChessBase"]
[SourceQuality "1"]
[TimeControl "40/4500+30:900+30"]

1. e4 {[%emt 0:00:00]} e5 {[%emt 0:00:00]} 2. Nf3 {[%emt 0:00:00]} Nc6 {[%emt 0:00:00]} 3. d4 {[%emt 0:00:00]} exd4 {[%emt 0:00:00]} 4. Nxd4 {[%emt 0:00:00]} Nf6 {[%emt 0:00:23]} 5. Nxc6 {[%emt 0:00:00]} bxc6 {[%emt 0:00:07]} 6. e5 {[%emt 0:00:01]} Nd5 {[%emt 0:00:11]} 7. Bc4 {[%emt 0:00:52]} Bb7 {[%emt 0:01:09]} 8. O-O {[%emt 0:11:34]} Be7 {[%emt 0:03:12]} 9. Qg4 {[%emt 0:08:41]} Rg8 {[%emt 0:08:47]} 10. Qf3 {[%emt 0:05:48]} d6 {[%emt 0:02:48]} 11. Nc3 {[%emt 0:12:33]} dxe5 {[%emt 0:04:29]} 12. Rd1 {[%emt 0:00:55]} Qd6 {[%emt 0:01:11]} 13. Nxd5 {[%emt 0:05:09]} cxd5 {[%emt 0:01:14]} 14. Bxd5 {[%emt 0:00:10]} Bxd5 {[%emt 0:00:08]} 15. Rxd5 {[%emt 0:00:09]} Qb4 {[%emt 0:00:22]} 16. Rxe5 {[%emt 0:04:36]} Qd4 {[%emt 0:07:26]} 17. Qxa8+ {[%emt 0:07:04]} Kd7 {[%emt 0:09:24]} 18. Qd5+ {[%emt 0:00:16]} Qxd5 {[%emt 0:00:12]} 19. Rxd5+ {[%emt 0:00:08]} Kc8 {[%emt 0:00:09]} 20. Bd2 {[%emt 0:01:09]} Re8 {[%emt 0:00:21]} 21. Re1 {[%emt 0:00:38]} c6 {[%emt 0:00:25]} 22. Rd3 {[%emt 0:00:13]} c5 {[%emt 0:00:27]} 23. Bc3 {[%emt 0:01:45]} c4 {[%emt 0:00:20]} 24. Rde3 {[%emt 0:01:16]} Kd7 {[%emt 0:00:05]} 25. Bb4 {[%emt 0:00:29]} Bxb4 {[%emt 0:01:41]} 26. Rxe8 {[%emt 0:00:29]} Bxe1 27. Rxe1 a5 {[%emt 0:04:08]} 28. f3 {[%emt 0:00:55]} Kc6 {[%emt 0:03:42]} 29. Rd1 {[%emt 0:00:45]} Kb5 {[%emt 0:00:44]} 30. c3 {[%emt 0:00:22]} a4 {[%emt 0:00:17]} 31. a3 {[%emt 0:00:14]} f6 {[%emt 0:00:09]} 32. Kf2 {[%emt 0:00:14]} g5 {[%emt 0:00:07]} 33. Ke3 {[%emt 0:00:17]} h6 {[%emt 0:00:14]} 34. Rd5+ {[%emt 0:00:15]} Kc6 {[%emt 0:00:04]} 35. Ke4 {[%emt 0:00:25]} Kb7 {[%emt 0:00:19]} 36. Kd4 {[%emt 0:00:15]} h5 {[%emt 0:00:33]} 37. Kxc4 {[%emt 0:00:11]} h4 {[%emt 0:00:28]} 38. Rd6 {[%emt 0:00:11]} Ka8 {[%emt 0:00:04]} 39. Rd7 {[%emt 0:00:30]} f5 {[%emt 0:00:30]} 40. Kc5 {[%emt 0:00:30]} h3 {[%emt 0:00:30]} 41. Kb6 {[%emt 0:15:30]} Kb8 {[%emt 0:14:41]} 42. g3 {[%emt 0:00:00]} Ka8 43. Kb5 {[%emt 0:00:00]} 1-0

[Event "GER-ch Youth U10W 2020"]
[Site "Willingen"]
[Date "2020.10.31"]
[Round "7.9"]
[White "Will, Elina"]
[Black "Nalam, Mokshadha"]
[Result "0-1"]
[ECO "C45"]
[WhiteElo "1149"]
[BlackElo "962"]
[Annotator "NA RC"]
[PlyCount "52"]
[EventDate "2020.10.27"]
[EventType "swiss"]
[EventRounds "7"]
[EventCountry "GER"]
[SourceTitle "playchess.com"]
[Source "ChessBase"]
[SourceQuality "1"]
[TimeControl "40/4500+30:900+30"]

1. e4 {[%emt 0:00:00]} e5 {[%emt 0:00:00]} 2. Nf3 {[%emt 0:00:00]} Nc6 {[%emt 0:00:00]} 3. d4 {[%emt 0:00:00]} exd4 {[%emt 0:00:00]} 4. Nxd4 {[%emt 0:00:00]} Bc5 {[%emt 0:00:00]} 5. c3 {[%emt 0:00:34]} Qf6 {[%emt 0:00:16]} 6. Be3 {[%emt 0:00:13]} Nge7 {[%emt 0:00:33]} 7. Be2 {[%emt 0:03:53]} O-O {[%emt 0:00:21]} 8. O-O d5 9. Bf3 {[%emt 0:02:43]} dxe4 {[%emt 0:01:35]} 10. Bxe4 {[%emt 0:00:37]} Bd6 {[%emt 0:00:44]} 11. Nf3 {[%emt 0:00:52]} Bg4 {[%emt 0:00:40]} 12. Nbd2 {[%emt 0:01:07]} Rad8 {[%emt 0:03:13]} 13. Qc2 {[%emt 0:00:44]} Ng6 {[%emt 0:01:07]} 14. Bg5 {[%emt 0:00:30]} Qe6 {[%emt 0:01:03]} 15. Bxd8 {[%emt 0:01:44]} Rxd8 {[%emt 0:00:09]} 16. h3 {[%emt 0:04:43]} Bxf3 {[%emt 0:00:31]} 17. Nxf3 {[%emt 0:01:20]} Nce5 {[%emt 0:00:49]} 18. Qe2 {[%emt 0:01:09]} Nf4 {[%emt 0:01:10]} 19. Qc2 {[%emt 0:11:59]} Nxf3+ {[%emt 0:00:26]} 20. Bxf3 {[%emt 0:00:30]} Nxh3+ {[%emt 0:00:55]} 21. gxh3 {[%emt 0:03:49]} Qxh3 {[%emt 0:00:11]} 22. Rfd1 {[%emt 0:01:37]} Qxf3 {[%emt 0:01:22]} 23. Kf1 {[%emt 0:00:42]} Qh1+ {[%emt 0:01:04]} 24. Ke2 {[%emt 0:00:38]} Re8+ {[%emt 0:00:55]} 25. Kd3 {[%emt 0:06:56]} Qe4+ {[%emt 0:00:13]} 26. Kd2 {[%emt 0:00:49]} Bf4# {[%emt 0:00:11]} 0-1